Cogmind - Beta 10.1 --- EXPLORER MODE // 2020.10.06 @ 14:33:13 Player: Luigi Panache Result: Destroyed by B-86 Titan with Railgun Performance ------------- Evolutions (6) 3000 Regions Visited (11) 2200 Robots Destroyed (72) 360 Value Destroyed (2208) 2208 Prototype IDs (12) 240 Alien Tech Used (0) 0 Bonus (20) 20 TOTAL SCORE: 8028 Bonus ------- Follower Combat Kills 20 Cogmind --------- Core Integrity 0/1150 Matter 300/300 Energy 99/100 System Corruption 2% Temperature Cool (9) Movement Core (50) Location -4/Factory Parts ------- > --- POWER (3) -------- (None) > --- PROPULSION (7) --- (None) > --- UTILITY (7) ------ (None) > --- WEAPON (3) ------- (None) > --- INVENTORY (4) ---- Carbon-fiber Leg Carbon-fiber Leg Tesla Rifle Hypervelocity Coil Gun Peak State ------------ > --- POWER ------------ Micro Fission Core Micro Fission Core > --- PROPULSION ------- Carbon-fiber Leg Carbon-fiber Leg Flexi-carbon Leg Flexi-carbon Leg Armored Leg > --- UTILITY ---------- Advanced Heat Sink Advanced Heat Sink Large Storage Unit High-capacity Storage Unit Improved Energy Well Hardened Medium Armor Plating Hacking Suite > --- WEAPON ----------- Heavy Ion Cannon Heavy Ion Cannon Heavy Ion Cannon > --- INVENTORY -------- Carbon-fiber Leg Carbon-fiber Leg Carbon-fiber Leg Tesla Rifle Heavy Ion Cannon Heavy Phase Cannon Heavy Phase Cannon Hypervelocity Coil Gun [Rating: 73] Favorites ----------- Power Light Nuclear Core Engine Light Deuterium Engine Power Core Light Nuclear Core Propulsion Armored Treads Treads Armored Treads Leg Flexi-carbon Leg Wheel Compact Wheel Hover Unit Improved Hover Unit Flight Unit VTOL Module Utility Large Storage Unit Device Weight Redist. System Storage Large Storage Unit Processor Advanced Terrain Scan Processor Hackware Hacking Suite Protection Improved Weapon Shielding Weapon Shotgun Energy Gun Improved Medium Laser Energy Cannon Heavy Ion Cannon Ballistic Gun Shotgun Ballistic Cannon Gauss Cannon Launcher Improved Grenade Launcher Build | -11 -10 -9 -8 -7 -7 -7 -6 -6 -6 -5 -4 ------- Run | Scr Mat Mat Mat Fac Low Low Fac Ext Cet Fac Fac Slots Evolved 13 | . 1 2 2 2 . . 2 . . 2 2 Power 2 | . . . 1 . . . . . . . 1 Propulsion 5 | . . 1 1 . . . . . . 2 1 Utility 5 | . 1 1 . 1 . . 2 . . . . Weapon 1 | . . . . 1 . . . . . . . Parts Attached 120 | 9 15 13 17 5 . 3 3 22 8 21 4 Power 18 | 1 . 4 3 1 . 3 . 3 . 3 . Engine 10 | 1 . 3 2 . . . . 3 . 1 . Core 8 | . . 1 1 1 . 3 . . . 2 . Reactor . | . . . . . . . . . . . . Propulsion 39 | 2 6 3 7 . . . . 7 4 9 1 Treads 7 | . . . 4 . . . . . 1 1 1 Leg 17 | 2 2 . . . . . . 5 . 8 . Wheel 4 | . . . . . . . . 2 2 . . Hover 4 | . 2 2 . . . . . . . . . Flight 7 | . 2 1 3 . . . . . 1 . . Utility 28 | 4 4 3 5 1 . . 3 3 1 4 . Device 13 | 1 2 2 2 . . . 1 2 . 3 . Storage 6 | 1 1 . 2 . . . . 1 1 . . Processor 1 | . . . 1 . . . . . . . . Hackware 2 | . . . . . . . 2 . . . . Protection 6 | 2 1 1 . 1 . . . . . 1 . Artifact . | . . . . . . . . . . . . Weapon 35 | 2 5 3 2 3 . . . 9 3 5 3 Energy Gun 6 | 2 . 2 . . . . . . 1 1 . Energy Cannon 9 | . . . . . . . . 1 2 3 3 Ballistic Gun 14 | . 5 . 2 2 . . . 4 . 1 . Ballistic Cannon 1 | . . . . . . . . 1 . . . Launcher 5 | . . 1 . 1 . . . 3 . . . Special Weapon . | . . . . . . . . . . . . Impact Weapon . | . . . . . . . . . . . . Slashing Weapon . | . . . . . . . . . . . . Piercing Weapon . | . . . . . . . . . . . . Special Melee Weapon . | . . . . . . . . . . . . Unidentified Prototypes 4 | . . 1 1 1 . . . 1 . . . Parts Lost 54 | . . . . . . . . 21 8 9 16 Power 7 | . . . . . . . . 4 1 1 1 Propulsion 21 | . . . . . . . . 8 3 4 6 Utility 9 | . . . . . . . . 2 2 2 3 Weapon 17 | . . . . . . . . 7 2 2 6 Highest Loss Streak 16 | . . . . . . . . 6 8 6 16 Average Slot Usage (%) 89 | . 99 96 95 99 100 100 100 75 69 86 42 Engine 4 | . 12 5 8 7 7 2 . . 4 2 . Core 4 | . . 4 8 6 7 11 12 5 . 1 6 Treads 13 | . . . 28 28 28 28 25 12 3 4 1 Leg 6 | . 5 . . . . . . 4 2 20 9 Hover 2 | . 19 6 . . . . . . . . . Flight 1 | . . 23 4 . . . . . 2 1 . Device 16 | . 24 30 17 14 14 14 18 14 15 12 4 Storage 13 | . 12 10 14 14 14 14 12 12 13 16 10 Hackware 3 | . . . . . . . 9 11 6 5 3 Protection 2 | . . . . 7 7 7 2 . . 2 1 Energy Cannon 3 | . . . . . . . . 2 4 12 6 Ballistic Gun 12 | . 22 11 12 21 21 21 18 7 4 1 . Naked Turns 81 | . . . . . . . . . . . 81 Heaviest Build 93 | 17 28 30 65 70 70 70 71 78 75 93 93 Greatest Support 92 | 20 26 28 92 86 86 86 86 86 32 86 86 Greatest Overweight (x) 23 | 3 2 1 . . . . . 3 23 3 18 Average Overweight (x) . | . . . . . . . . . 3 1 . Largest Inventory Capacity 18 | 8 10 10 18 18 18 18 18 18 18 18 18 Average Capacity 15 | 5 9 10 16 18 18 18 18 18 18 18 13 Most Carried 18 | 4 10 10 18 18 18 18 17 16 8 9 8 Average Carried 11 | 1 8 9 14 17 18 18 16 13 4 6 5 Final Capacity 18 | 8 10 10 18 18 18 18 18 18 18 18 4 Final Carried 18 | 4 10 10 18 18 18 18 16 8 . 8 4 Class Distribution -------------------- 51% | Hacker-Mutant 36% | Hacker-Skirmisher 5% | Hacker-Tank 4% | Scavenger-Gunner Dominant Class ---------------- Hacker-Mutant | -10/Materials Hacker-Mutant | -9/Materials Hacker-Mutant | -8/Materials Hacker-Skirmisher | -7/Factory Hacker-Skirmisher | -7/Lower Caves Hacker-Skirmisher | -7/Lower Caves Hacker-Skirmisher | -6/Factory Hacker-Mutant | -6/Extension Hacker-Skirmisher | -6/Cetus Hacker-Mutant | -5/Factory Hacker-Mutant | -4/Factory Resources | -11 -10 -9 -8 -7 -7 -7 -6 -6 -6 -5 -4 ----------- Run | Scr Mat Mat Mat Fac Low Low Fac Ext Cet Fac Fac Matter Collected 2345 | 193 297 220 405 27 129 63 129 611 . 263 8 Remotely . | . . . . . . . . . . . . Salvage Created 2818 | 89 202 374 375 . 243 136 238 509 . 578 74 Parts 142 | 11 17 21 23 . 1 6 12 23 . 26 2 Haulers Intercepted 2 | . . 1 1 . . . . . . . . Recyclers Shooed 3 | . 1 . 1 . . . 1 . . . . Parts Field Recycled . | . . . . . . . . . . . . Retrieved Matter . | . . . . . . . . . . . . Parts Self-Destructed . | . . . . . . . . . . . . Prevented . | . . . . . . . . . . . . Kills | -11 -10 -9 -8 -7 -7 -7 -6 -6 -6 -5 -4 ------- Run | Scr Mat Mat Mat Fac Low Low Fac Ext Cet Fac Fac Combat Hostiles Destroyed 42 | . 6 4 8 . 1 3 4 7 . 8 1 Guns 30 | . 6 2 8 . 1 3 4 5 . 1 . Cannons 9 | . . . . . . . . 2 . 6 1 AOE 3 | . . 2 . . . . . . . 1 . Classes Destroyed 13 | 2 4 2 2 . 1 1 . 1 . . . Worker 8 | . 1 2 2 . . . . 3 . . . Builder 4 | . . . . . . . . 3 . 1 . Tunneler 3 | 2 . . . . . . . 1 . . . Hauler 2 | . . 1 1 . . . . . . . . Recycler 4 | 1 . 2 . . . . . 1 . . . Operator 3 | . . 1 . . . . 1 1 . . . Watcher 3 | . 2 . . . . . . . . 1 . Swarmer 9 | . 4 . 3 . . . . 2 . . . Grunt 17 | . 2 4 3 . . . 2 2 . 4 . Brawler 2 | . . . 1 . . . . . . . 1 Sentry 6 | . . . 1 . . . 2 1 . 2 . Hunter 5 | . . . . . 1 2 . 2 . . . Programmer 3 | . . . . . . 1 . . . 2 . Packrat 3 | . . . . . 3 . . . . . . Best Kill Streak 8 | 3 2 8 6 . 1 3 3 6 . 2 1 Combat Bots Only 4 | . 2 2 4 . 1 3 3 4 . 2 1 Max Kills in Single Turn 3 | 1 1 3 1 . 1 1 1 2 . 1 1 Gunslinging . | . . . . . . . . . . . . Exploded 1 | . . 1 . . . . . . . 1 . Melee . | . . . . . . . . . . . . Uniques/NPCs Destroyed . | . . . . . . . . . . . . Combat | -11 -10 -9 -8 -7 -7 -7 -6 -6 -6 -5 -4 -------- Run | Scr Mat Mat Mat Fac Low Low Fac Ext Cet Fac Fac Damage Taken 9001 | . 142 150 134 . 30 218 275 3113 855 1339 2745 Core 2204 | . 33 31 5 . . 38 23 498 226 192 1158 Absorbed by Shields 110 | . . . . . . . . . . . 110 Core Remaining (%) 80 | 100 86 92 99 . . 94 . . 12 80 . Volleys Fired 186 | 7 24 20 23 . 9 3 12 59 . 27 2 Largest 3 | 2 2 2 2 . 3 3 3 3 . 3 3 Hottest 261 | 90 70 46 48 . 71 71 71 96 . 195 261 Shots Fired 349 | 14 48 21 46 . 27 9 36 88 . 54 6 Gun 258 | 14 48 14 46 . 27 9 36 51 . 13 . Cannon 69 | . . . . . . . . 22 . 41 6 Launcher 22 | . . 7 . . . . . 15 . . . Special . | . . . . . . . . . . . . Kinetic 245 | . 42 14 46 . 27 9 36 62 . 9 . Thermal 59 | 14 6 . . . . . . . . 33 6 Explosive 22 | . . 7 . . . . . 15 . . . Electromagnetic 23 | . . . . . . . . 11 . 12 . Robot Hit Streak 46 | 13 11 13 24 . 39 26 46 19 . 21 10 Robot Miss Streak 4 | . 2 2 1 . 1 . 1 4 . 1 . Penetration Max . | . . . . . . . . . . . . Secondary Targets 5 | . . . 2 . . 1 1 1 . . . Max Gunslinging Chain 1 | . . . 1 . . 1 1 1 . . . Shots Hit Robots 267 | 13 32 13 37 . 25 9 35 58 . 40 5 Core Hits 181 | 4 14 19 22 . 13 7 21 47 . 31 3 Critical Hits 6 | . . . . . . 1 . 2 . 3 . Critical Kills 3 | . . . . . . 1 . 1 . 1 . Critical Parts Destroyed 2 | . . . . . . . . 1 . 1 . Melee Attacks . | . . . . . . . . . . . . Impact . | . . . . . . . . . . . . Slashing . | . . . . . . . . . . . . Piercing . | . . . . . . . . . . . . Sneak Attacks . | . . . . . . . . . . . . Combat Hostiles . | . . . . . . . . . . . . Follow-up Attacks . | . . . . . . . . . . . . Damage Inflicted 7085 | 155 329 711 613 . 412 140 679 2401 . 1444 201 Guns 3219 | 155 325 215 613 . 412 140 676 585 . 98 . Cannons 1527 | . . . . . . . . 478 . 854 195 Explosions 2293 | . . 496 . . . . . 1318 . 479 . Melee . | . . . . . . . . . . . . Ramming 46 | . 4 . . . . . 3 20 . 13 6 Kinetic 3214 | . 275 215 613 . 412 140 676 851 . 32 . Thermal 1259 | 155 50 . . . . . . . . 859 195 Explosive 1814 | . . 496 . . . . . 1318 . . . Electromagnetic 752 | . . . . . . . . 212 . 540 . Impact . | . . . . . . . . . . . . Slashing . | . . . . . . . . . . . . Piercing . | . . . . . . . . . . . . Highest Corruption 4 | . 4 . . . . . . . . 2 2 Average Corruption 2 | . 3 . . . . . . . . 1 1 Corruption Purged . | . . . . . . . . . . . . Effects 8 | . 4 . . . . . . . . 4 . Message Errors 1 | . 1 . . . . . . . . . . Matter Fused 2 | . 2 . . . . . . . . . . Energy Discharges 1 | . . . . . . . . . . 1 . Data Loss (minor) 3 | . 1 . . . . . . . . 2 . Weapon Failures 1 | . . . . . . . . . . 1 . Overload Shots . | . . . . . . . . . . . . Overflow Damage 68 | . . 17 . . . . . . . 51 . Projectiles . | . . . . . . . . . . . . Explosions 68 | . . 17 . . . . . . . 51 . Melee . | . . . . . . . . . . . . Knockbacks 2 | . . . . . . . . 2 . . . Impact 1 | . . . . . . . . 1 . . . Kinetic 1 | . . . . . . . . 1 . . . Secondary . | . . . . . . . . . . . . Self-Inflicted Damage 209 | . 2 64 . . . . . . . 141 2 Shots 7 | . . 3 . . . . . . . 4 . Rammed 7 | . 2 . . . . . 1 2 . . 2 Targets Rammed 10 | . 2 . . . . . 1 2 . 3 2 Kicked 3 | . . . . . . . . . . 3 . Crushed . | . . . . . . . . . . . . Highest Temperature 179 | 90 84 2 63 . 70 28 . 59 . 179 153 Average Temperature 29 | 36 18 1 18 . 24 16 . 21 . 77 77 Received Heat Transfer 1595 | . 54 63 81 . . . 168 357 189 522 161 Siege Activations . | . . . . . . . . . . . . Robots Corrupted . | . . . . . . . . . . . . Combat Hostiles . | . . . . . . . . . . . . Parts Fried 6 | . . . . . . . . 4 . 2 . Impact Corruptions . | . . . . . . . . . . . . Robots Melted . | . . . . . . . . . . . . Combat Hostiles . | . . . . . . . . . . . . Parts Melted 10 | . 1 . . . . . . 2 . 7 . Heat Transferred 1854 | 409 148 . . . . . . . . 1075 222 Parts Sabotaged . | . . . . . . . . . . . . Parts Stolen . | . . . . . . . . . . . . Parts Stripped . | . . . . . . . . . . . . Power Chain Reactions 2 | . . . . . . . . . . 2 . Missiles Intercepted . | . . . . . . . . . . . . Alert | -11 -10 -9 -8 -7 -7 -7 -6 -6 -6 -5 -4 ------- Run | Scr Mat Mat Mat Fac Low Low Fac Ext Cet Fac Fac Peak Influence 173 | 15 161 156 116 59 . . 173 81 21 119 75 Initial 46 | . 7 . 46 37 . . 37 7 21 . 18 Average 46 | 4 80 48 50 33 . . 99 19 7 49 19 Maximum Alert Level . | . . . . . . . . . . . . Low Security (%) 100 | 100 100 100 100 100 . . 100 100 100 100 100 Level 1 . | . . . . . . . . . . . . Level 2 . | . . . . . . . . . . . . Level 3 . | . . . . . . . . . . . . Level 4 . | . . . . . . . . . . . . Level 5 . | . . . . . . . . . . . . High Security . | . . . . . . . . . . . . Max Security . | . . . . . . . . . . . . Squads Dispatched 11 | . . . 2 . . . 3 2 . 3 1 Investigation 1 | . . . 1 . . . . . . . . Extermination 1 | . . . . . . . . . . 1 . Reinforcement 7 | . . . 1 . . . 1 2 . 2 1 Assault . | . . . . . . . . . . . . Garrison 2 | . . . . . . . 2 . . . . Intercept . | . . . . . . . . . . . . Construction Impeded 2 | . . . . . . . . 1 . 1 . Haulers Reinforced . | . . . . . . . . . . . . Stealth | -11 -10 -9 -8 -7 -7 -7 -6 -6 -6 -5 -4 --------- Run | Scr Mat Mat Mat Fac Low Low Fac Ext Cet Fac Fac Distress Signals 8 | . 2 . 2 . . . . 2 1 1 . Communications Jammed . | . . . . . . . . . . . . Distress Signals . | . . . . . . . . . . . . Times Spotted 116 | . 15 6 14 . 1 3 6 23 5 19 24 Peak Tracking Total 15 | . 3 3 5 . 1 3 3 7 5 4 15 Tactical Retreats 13 | . 2 . . . . . 1 7 . 2 1 Traps | -11 -10 -9 -8 -7 -7 -7 -6 -6 -6 -5 -4 ------- Run | Scr Mat Mat Mat Fac Low Low Fac Ext Cet Fac Fac Traps Triggered 11 | . 6 1 . . . . 1 . . . 3 Indirectly . | . . . . . . . . . . . . Trap Hack Attempts . | . . . . . . . . . . . . Triggered . | . . . . . . . . . . . . Disarmed . | . . . . . . . . . . . . Reprogrammed . | . . . . . . . . . . . . Reused . | . . . . . . . . . . . . Traps Extracted . | . . . . . . . . . . . . Installed . | . . . . . . . . . . . . Triggered . | . . . . . . . . . . . . Machines | -11 -10 -9 -8 -7 -7 -7 -6 -6 -6 -5 -4 ---------- Run | Scr Mat Mat Mat Fac Low Low Fac Ext Cet Fac Fac Machines Disabled 18 | . . 1 . . . . . 1 . 16 . Max in Single Turn 11 | . . 1 . . . . . 1 . 11 . Garrison Access 3 | . . . 1 1 . . . . . 1 . Machines Sabotaged . | . . . . . . . . . . . . Garrisons Compromised . | . . . . . . . . . . . . Overloaded Fab Kills . | . . . . . . . . . . . . Fab Network Shutdowns . | . . . . . . . . . . . . Hacking | -11 -10 -9 -8 -7 -7 -7 -6 -6 -6 -5 -4 --------- Run | Scr Mat Mat Mat Fac Low Low Fac Ext Cet Fac Fac Machines Accessed 26 | . 6 2 6 4 . . 2 2 . 4 . Terminals 15 | . 4 2 4 . . . 2 2 . 1 . Fabricators 3 | . . . . 1 . . . . . 2 . Repair Stations 2 | . . . 1 1 . . . . . . . Recycling Units 3 | . 2 . . 1 . . . . . . . Scanalyzers . | . . . . . . . . . . . . Garrison Access 3 | . . . 1 1 . . . . . 1 . Total Hacks 70 | . 15 3 16 13 . . 6 7 . 10 . Successful 47 | . 10 1 13 9 . . 4 4 . 6 . Failed 23 | . 5 2 3 4 . . 2 3 . 4 . Catastrophic 4 | . 1 1 1 . . . 1 . . . . Database Lockouts . | . . . . . . . . . . . . Manual 21 | . 6 2 6 . . . 3 3 . 1 . Terminals 42 | . 11 3 11 . . . 6 7 . 4 . Fabricators 4 | . . . . 2 . . . . . 2 . Repair Stations 10 | . . . 4 6 . . . . . . . Recycling Units 7 | . 4 . . 3 . . . . . . . Scanalyzers . | . . . . . . . . . . . . Garrison Access 7 | . . . 1 2 . . . . . 4 . Terminal Hacks 26 | . 6 1 8 . . . 4 4 . 3 . Record 2 | . . . . . . . 2 . . . . Robot Analysis 1 | . 1 . . . . . . . . . . Prototype ID Bank 4 | . 2 1 . . . . 1 . . . . Open Door 2 | . . . . . . . . 2 . . . Branch Access Points 1 | . . . 1 . . . . . . . . Terminal Index 2 | . 1 . 1 . . . . . . . . Alert Level 2 | . 1 . 1 . . . . . . . . Unreport Threat 5 | . . . 1 . . . 1 2 . 1 . Dispatch Records 1 | . . . 1 . . . . . . . . Surveillance Status 1 | . . . . . . . . . . 1 . Recall Investigation 2 | . . . 1 . . . . . . 1 . Recall Reinforcements 1 | . . . 1 . . . . . . . . Hauler Manifests 2 | . 1 . 1 . . . . . . . . Fabricator Hacks 4 | . . . . 2 . . . . . 2 . Network Status 2 | . . . . 1 . . . . . 1 . Build 2 | . . . . 1 . . . . . 1 . Repair Station Hacks 7 | . . . 4 3 . . . . . . . Scan Component 4 | . . . 2 2 . . . . . . . Repair 3 | . . . 2 1 . . . . . . . Recycling Unit Hacks 7 | . 4 . . 3 . . . . . . . Report Inventory 3 | . 2 . . 1 . . . . . . . Retrieve Matter 2 | . 1 . . 1 . . . . . . . Retrieve Components 2 | . 1 . . 1 . . . . . . . Scanalyzer . | . . . . . . . . . . . . Garrison Access Hacks 3 | . . . 1 1 . . . . . 1 . Seal Access 3 | . . . 1 1 . . . . . 1 . Unauthorized Hacks . | . . . . . . . . . . . . Terminals . | . . . . . . . . . . . . Fabricators . | . . . . . . . . . . . . Repair Stations . | . . . . . . . . . . . . Recycling Units . | . . . . . . . . . . . . Scanalyzers . | . . . . . . . . . . . . Garrison Access . | . . . . . . . . . . . . Data Cores Recovered . | . . . . . . . . . . . . Used . | . . . . . . . . . . . . Hacking Detections 17 | . 3 2 4 3 . . 2 1 . 2 . Full Trace Events 1 | . . . 1 . . . . . . . . Feedback Events . | . . . . . . . . . . . . Feedback Blocked . | . . . . . . . . . . . . Robot Schematics Acquired . | . . . . . . . . . . . . Robots Built 3 | . . . . 3 . . . . . . . Matter 252 | . . . . 252 . . . . . . . Time 134 | . . . . 134 . . . . . . . Total Robot Build Rating 12 | . . . . 12 . . . . . . . Part Schematics Acquired . | . . . . . . . . . . . . Parts Built 1 | . . . . . . . . . . 1 . Matter 417 | . . . . . . . . . . 417 . Time 222 | . . . . . . . . . . 222 . Total Part Build Rating 9 | . . . . . . . . . . 9 . Parts Repaired 3 | . . . 2 1 . . . . . . . Time 55 | . . . 29 26 . . . . . . . Parts Recycled . | . . . . . . . . . . . . Recycled Matter . | . . . . . . . . . . . . Retrieved Matter . | . . . . . . . . . . . . Retrieved Components 6 | . 3 . . 3 . . . . . . . Parts Scanalyzed . | . . . . . . . . . . . . Part Schematics Acquired . | . . . . . . . . . . . . Parts Damaged . | . . . . . . . . . . . . Bothacking | -11 -10 -9 -8 -7 -7 -7 -6 -6 -6 -5 -4 ------------ Run | Scr Mat Mat Mat Fac Low Low Fac Ext Cet Fac Fac Used RIF Installer . | . . . . . . . . . . . . Robots Hacked . | . . . . . . . . . . . . Non-combat . | . . . . . . . . . . . . Combat . | . . . . . . . . . . . . Robot Hacks Applied . | . . . . . . . . . . . . Relay Couplers Released . | . . . . . . . . . . . . Robots Rewired . | . . . . . . . . . . . . Allies Hacked . | . . . . . . . . . . . . Hacks Repelled . | . . . . . . . . . . . . Allies | -11 -10 -9 -8 -7 -7 -7 -6 -6 -6 -5 -4 -------- Run | Scr Mat Mat Mat Fac Low Low Fac Ext Cet Fac Fac Total Allies 7 | . . . . 3 . . . 4 . . . Largest Group 3 | . . . . 3 1 . . 2 . . . Highest-Rated Group 90 | . . . . 90 30 . . 68 . . . Highest-Rated Ally 37 | . . . . 30 30 . . 37 . . . Total Orders . | . . . . . . . . . . . . Ally Attacks 17 | . . . . . 4 . . 13 . . . Total Damage 289 | . . . . . 113 . . 176 . . . Kills 1 | . . . . . . . . 1 . . . Allies Corrupted . | . . . . . . . . . . . . Allies Melted . | . . . . . . . . . . . . Intel | -11 -10 -9 -8 -7 -7 -7 -6 -6 -6 -5 -4 ------- Run | Scr Mat Mat Mat Fac Low Low Fac Ext Cet Fac Fac Robot Analysis Total 1 | . 1 . . . . . . . . . . Derelict Logs Recovered 2 | . . . . . 2 . . . . . . Drone Launches . | . . . . . . . . . . . . Drone Recoveries . | . . . . . . . . . . . . Exploration | -11 -10 -9 -8 -7 -7 -7 -6 -6 -6 -5 -4 ------------- Run | Scr Mat Mat Mat Fac Low Low Fac Ext Cet Fac Fac Turns Passed 6215 | 113 850 281 640 506 682 165 285 1114 86 1253 240 Spaces Moved 3610 | 64 586 222 393 274 387 85 144 567 54 625 209 Core 152 | 19 1 . . . . . . . 1 . 131 Treads 1650 | . . . 243 274 387 85 144 344 . 150 23 Legs 742 | 45 107 . . . . . . 110 . 425 55 Wheels 216 | . . . . . . . . 113 53 50 . Hover 553 | . 464 89 . . . . . . . . . Flight 297 | . 14 133 150 . . . . . . . . Fastest Speed 31 | 50 56 34 31 170 170 170 170 120 120 120 50 Average Speed 140 | 117 115 58 116 170 170 170 170 162 146 161 98 Slowest Speed 1200 | 200 200 116 170 170 170 170 170 210 1200 220 950 Overloaded Moves . | . . . . . . . . . . . . Propulsion Burnouts . | . . . . . . . . . . . . Robots Hopped . | . . . . . . . . . . . . Cave-ins Triggered . | . . . . . . . . . . . . Exploration Rate (%) 28 | 5 77 24 28 7 55 15 5 71 23 23 14 Regions Visited 11 Branch Regions 4 Pre-discovered Areas . | . . . . . . . . . . . . Known Exits Taken 11 | 1 1 1 1 1 1 1 1 1 1 1 . Unknown Exits Taken . | . . . . . . . . . . . . Scrap Searched 4 | . . . . . 4 . . . . . . Spaces Dug . | . . . . . . . . . . . . Terrain Destroyed 142 | . . 66 . . . . . 48 . 28 . Melee . | . . . . . . . . . . . . Projectile 5 | . . . . . . . . 2 . 3 . AOE 137 | . . 66 . . . . . 46 . 25 . Terrain Rammed . | . . . . . . . . . . . . Walls Destroyed . | . . . . . . . . . . . . Machines Disabled . | . . . . . . . . . . . . Actions | -11 -10 -9 -8 -7 -7 -7 -6 -6 -6 -5 -4 --------- Run | Scr Mat Mat Mat Fac Low Low Fac Ext Cet Fac Fac Total 4450 | 84 719 349 537 315 395 101 162 672 61 816 239 Wait 415 | . 63 83 72 28 . 9 . 20 . 132 8 Move 3599 | 63 585 221 392 273 386 84 143 566 53 624 209 Hop . | . . . . . . . . . . . . Pick Up 56 | 3 13 5 21 5 . . 1 1 . 7 . Fast Attach 51 | 9 5 2 7 1 . . 1 10 . 15 1 Attach 35 | . 4 2 5 2 . . 2 7 8 2 3 Detach 6 | 1 2 1 2 . . . . . . . . Swap 34 | . 6 9 5 2 . 3 . 5 . 4 . Drop 44 | 1 15 6 10 4 . 2 2 2 . 2 . Fire 186 | 7 24 20 23 . 9 3 12 59 . 27 2 Melee . | . . . . . . . . . . . . Ram 4 | . 2 . . . . . . . . . 2 Kick 3 | . . . . . . . . . . 3 . Crush 3 | . . . . . . . 1 2 . . . Escape Stasis 14 | . . . . . . . . . . . 14 Rewire . | . . . . . . . . . . . . Trap . | . . . . . . . . . . . . Miscellaneous . | . . . . . . . . . . . . Route ------- -11/Scrapyard -10/Materials (discovered 4 exits: *Mat x2 / *Min x2) -9/Materials -8/Materials -7/Factory -7/Lower Caves -7/Lower Caves -6/Factory -6/Extension (discovered 2 exits: *Fac / *Cet) -6/Cetus -5/Factory (discovered 2 exits: *Fac / *Upp) -4/Factory History --------- Turn | Location | Event 21 | -11/Scrapyard | Identified exit to Materials 21 | -11/Scrapyard | Discovered exit to Materials (range 16) 114 | -11/Scrapyard | Entered Materials 114 | -10/Materials | Evolved 1 slot: Utility x1 306 | -10/Materials | Build established: Hacker-Mutant 338 | -10/Materials | Identified exit to Mines 338 | -10/Materials | Discovered exit to Mines (range 13) 427 | -10/Materials | Identified exit to Materials 427 | -10/Materials | Discovered exit to Materials (range 14) 510 | -10/Materials | Discovered exit to Mines (range 10) 688 | -10/Materials | Discovered exit to Materials (range 15) 964 | -10/Materials | Entered another Materials area 964 | -9/Materials | Evolved 2 slots: Propulsion x1, Utility x1 1218 | -9/Materials | Identified exit to Materials 1218 | -9/Materials | Discovered exit to Materials (range 10) 1245 | -9/Materials | Entered another Materials area 1245 | -8/Materials | Evolved 2 slots: Power x1, Propulsion x1 1649 | -8/Materials | Repaired Mni. Grenade Launcher 1663 | -8/Materials | Repaired Hcp. Storage Unit 1833 | -8/Materials | Identified exit to Factory 1833 | -8/Materials | Discovered exit to Factory (range 12) 1885 | -8/Materials | Entered Factory 1885 | -7/Factory | Evolved 2 slots: Utility x1, Weapon x1 2187 | -7/Factory | Build established: Hacker-Skirmisher 2227 | -7/Factory | Repaired Broken Lgt. Nuclear Core 2251 | -7/Factory | Fabricated L-41 Fighter? 2383 | -7/Factory | Identified exit to Lower Caves 2383 | -7/Factory | Discovered exit to Lower Caves (range 5) 2391 | -7/Factory | Entered Lower Caves 2391 | -7/Lower Caves | Accompanied by 1 ally 2738 | -7/Lower Caves | Identified exit to Lower Caves 3073 | -7/Lower Caves | Entered another Lower Caves area 3211 | -7/Lower Caves | Identified exit to Factory 3211 | -7/Lower Caves | Discovered exit to Factory (range 14) 3238 | -7/Lower Caves | Entered Factory 3238 | -6/Factory | Evolved 2 slots: Utility x2 3349 | -6/Factory | Garrison activated, responded to threat 3497 | -6/Factory | Identified exit to Extension 3497 | -6/Factory | Discovered exit to Extension (range 16) 3523 | -6/Factory | Entered Extension 3799 | -6/Extension | Spotted B-75 Beast 3852 | -6/Extension | Spotted B-75 Beast 3873 | -6/Extension | Disrupted transfer network 3913 | -6/Extension | Lost 6 parts (2p1n1u2w) 4113 | -6/Extension | Build established: Hacker-Mutant 4135 | -6/Extension | Rescued a captive Derelict 4136 | -6/Extension | Rescued a captive Derelict 4187 | -6/Extension | Rescued a captive Derelict 4188 | -6/Extension | Rescued a captive Derelict 4380 | -6/Extension | Lost 3 parts (1n2w) 4507 | -6/Extension | Core integrity fell below 50% 4564 | -6/Extension | Lost 5 parts (1p2n1u1w) 4616 | -6/Extension | Identified exit to Factory 4616 | -6/Extension | Discovered exit to Factory (range 16) 4616 | -6/Extension | Identified exit to Cetus 4616 | -6/Extension | Discovered exit to Cetus (range 16) 4637 | -6/Extension | Entered Cetus 4653 | -6/Cetus | Spotted Cetus Guard 4653 | -6/Cetus | Spotted Cetus Guard 4654 | -6/Cetus | Spotted Cetus Guard 4657 | -6/Cetus | Spotted Cetus Guard 4689 | -6/Cetus | Core integrity fell below 20% 4703 | -6/Cetus | Discovered exit to Factory (range 16) 4723 | -6/Cetus | Entered Factory 4723 | -5/Factory | Evolved 2 slots: Propulsion x2 4742 | -5/Factory | Lost 8 parts (1p3n2u2w) 4914 | -5/Factory | Identified exit to Upper Caves 4914 | -5/Factory | Discovered exit to Upper Caves (range 15) 4985 | -5/Factory | Build established: Hacker-Skirmisher 5142 | -5/Factory | Fabricated Enh. Armored Heavy Treads? 5292 | -5/Factory | Build established: Scavenger-Gunner 5387 | -5/Factory | Lost 6 parts (1p2n1u2w) 5946 | -5/Factory | Identified exit to Factory 5946 | -5/Factory | Discovered exit to Factory (range 5) 5976 | -5/Factory | Entered another Factory area 5976 | -4/Factory | Evolved 2 slots: Power x1, Propulsion x1 6135 | -4/Factory | Released all parts (5) 6153 | -4/Factory | Core integrity fell below 50% 6157 | -4/Factory | Lost 16 parts (1p6n3u6w) 6191 | -4/Factory | Core integrity fell below 20% 6211 | -4/Factory | Spotted B-86 Titan 6216 | -4/Factory | Destroyed by B-86 Titan with Railgun Last Messages --------------- 06156_ Field strength at 31. 06157_ Field strength at 25. 06158_ Penetrated by Slug. 06158_ Field strength at 12. 06159_ Stasis field depleted. 06159_ Slug penetrates H-77 Assassin. 06159_ Slug penetrates Wall. 06160_ Penetrated by Slug. 06162_ Slug penetrates Wall. 06172_ Penetrated by Slug. 06175_ Slammed into K-01 Serf. 06178_ K-01 Serf cleans the Terminal. 06182_ Penetrated by Slug. 06189_ Slug penetrates Wall. 06190_ K-01 Serf cleans the Neutrino Reactor. 06191_ Slug penetrates R-10 Processor. 06193_ Slammed into K-01 Serf. 06211_ Fusion Modulator explodes. 06212_ U-05 Engineer lays Concrete. 06216_ Penetrated by Slug. Map ----- +----------------------------------------------------+ | ??????????????# #??????????????????????????????? | | ??????????????# #??????????????????????????????? | | ??????????????# #??????????????????????????????? | | ??????????????# #??????????????????????????????? | | ??############# #??????????????????????????????? | | ??? # #??????????????????????????????? | | ????? " " " + #??????????????????????????????? | | ????? " " " # #??????????????????????????????? | | ?????? " " " # #??????????????????????????????? | | ??????! " " "?# #??????????????????????????????? | | ??????? " " "?# #??????????????????????????????? | | ??????? " " ??# #??????????????????????????????? | | ??????? " " ??# #??????????????????????????????? | | ????????" "???# #??????????????????????????????? | | ????????" "???# #??????????????????????????????? | | ??????????????# #??????????????????????????????? | | ??##"##?#?????# ##?????????????????????????????? | | ?"""""""# ##### "###???????????????????????????? | | #???????????????????????????? | | #???????????????????????????? | | !! """#???????????????????????????? | | ! Y"#???????????????????????????? | | """#???????????????????????????? | | #???????????????????????????? | | ? #####+#######???????????????? | | ? u @ ????????? | | ??= ^????????? | | ??= ????????? | | ?? ?????????? | | ??? BB ?????????? | | ??? BB;;;###+#+#############??????????? | | ???? ; ????????????????????????????? | | ???? #;;# ????????????????????????????? | | ?????####+##+#### ???????????????????????????? | | ????????????????# ???????????????????????????? | | ????????????????# ??????????????????????????? | | ????????????????# ???????????????????????????? | | ????????????????# ???????????????????????????? | | ????????????????######???????????????????????????? | | ?????????????????????????????????????????????????? | | ?????????????????????????????????????????????????? | | ?????????????????????????????????????????????????? | | ?????????????????????????????????????????????????? | | ?????????????????????????????????????????????????? | | ?????????????????????????????????????????????????? | | ?????????????????????????????????????????????????? | | ?????????????????????????????????????????????????? | | ?????????????????????????????????????????????????? | | ?????????????????????????????????????????????????? | | ?????????????????????????????????????????????????? | +----------------------------------------------------+ Best States ------------- Heat Dissipation 97 Energy Generation 23 Energy Capacity 770 Matter Stores 300 Matter Capacity 300 Sight Range 16 Terrain Scan Range 20 Terrain Scan Density 10 Additional Mass Support 12 Base Temperature (-) 100 Armor Coverage 225 Resistance: KI 35 Resistance: TH 35 Resistance: EX 35 Resistance: EM 35 Resistance: I 35 Resistance: S 35 Resistance: P 35 Core Shielding 20 Weapon Shielding 66 Evasion (%) 63 Recoil Reduction 4 Offensive Hacking 40 Item Schematics ----------------- None Robot Schematics ------------------ None Fabricated ------------ L-41 Fighter | x3 | -7/Factory | Preloaded Enh. Armored Heavy Treads | x1 | -5/Factory | Preloaded Alien Tech Used ----------------- None Achievements -------------- It Was An Accident, I Swear Knowing Is Half The Battle My Command Is Your Wish Challenges ------------ None Game ------ Seed LatentImprovedDevice Manual? 0 Play Time 01:12:57 Cumulative 20.4 hours Start 2020.10.05 @ 19:51:30 End 2020.10.06 @ 14:33:13 Sessions 3 Manual Loads 0 Difficulty Explorer Special Mode None Game No. 18 Rogue 2 Adventurer 11 Explorer 5 Win Type - Total 0 Types 0/0/0/0/0/0/0/0/0 Lore% 16 Gallery% 31 Achievement% 21 Wizard Run 0 Options --------- ASCII 0 Keyboard 0 Movement Mouse Keybinds 0 Fullscreen 1 Font 18/Terminus Map View 76x50 Tactical HUD 1 Map Filters NONE Filters NONE Steam 1 RUN: c29c5b7f-c808-4a0d-abef-09d853e541ff